[Event "*** Titled Tuesday Blitz"]
[Site "Chess.com"]
[Date "2021.03.30"]
[Round "2"]
[White "GMKrikor"]
[Black "UCantHandleDenker"]
[Result "1-0"]
[WhiteElo "2824"]
[BlackElo "2542"]
[TimeControl "180+1"]
[EndTime "10:18:28 PDT"]
[Termination "GMKrikor won by checkmate"]

1. d4 {[%clk 0:03:00.9]} 1... d6 {[%clk 0:02:59.4]} 2. e4 {[%clk 0:02:59.6]}
2... Nf6 {[%clk 0:02:59.6]} 3. Nc3 {[%clk 0:02:59.2]} 3... e5 {[%clk 0:03:00.2]}
4. Nf3 {[%clk 0:02:58.7]} 4... Nbd7 {[%clk 0:02:58.6]} 5. Bc4 {[%clk 0:02:57.9]}
5... Be7 {[%clk 0:02:58.9]} 6. O-O {[%clk 0:02:56.7]} 6... O-O {[%clk
0:02:58.5]} 7. Re1 {[%clk 0:02:55.2]} 7... c6 {[%clk 0:02:58.2]} 8. a4 {[%clk
0:02:54.3]} 8... b6 {[%clk 0:02:51.9]} 9. h3 {[%clk 0:02:52.5]} 9... a6 {[%clk
0:02:51.3]} 10. Be3 {[%clk 0:02:43.9]} 10... Rb8 {[%clk 0:02:49.8]} 11. Ba2
{[%clk 0:02:36.7]} 11... b5 {[%clk 0:02:46.2]} 12. axb5 {[%clk 0:02:34.5]} 12...
axb5 {[%clk 0:02:46.2]} 13. b4 {[%clk 0:02:11.1]} 13... Qc7 {[%clk 0:02:45.1]}
14. Bb3 {[%clk 0:02:07.4]} 14... Nb6 {[%clk 0:02:38.5]} 15. Qd3 {[%clk
0:01:48.9]} 15... h6 {[%clk 0:02:16.1]} 16. Rad1 {[%clk 0:01:36.5]} 16... Re8
{[%clk 0:02:06.3]} 17. Rd2 {[%clk 0:01:06.1]} 17... Rb7 {[%clk 0:02:00.1]} 18.
Red1 {[%clk 0:01:05.3]} 18... Nc4 {[%clk 0:01:20.2]} 19. Bxc4 {[%clk 0:00:54.9]}
19... bxc4 {[%clk 0:01:21.1]} 20. Qxc4 {[%clk 0:00:55.8]} 20... Be6 {[%clk
0:01:13.6]} 21. d5 {[%clk 0:00:39.3]} 21... cxd5 {[%clk 0:01:13.3]} 22. Qxc7
{[%clk 0:00:40.2]} 22... Rxc7 {[%clk 0:01:13.7]} 23. Nxd5 {[%clk 0:00:40.9]}
23... Nxd5 {[%clk 0:01:12.5]} 24. exd5 {[%clk 0:00:41.8]} 24... Bf5 {[%clk
0:01:12.9]} 25. Rc1 {[%clk 0:00:34.5]} 25... Rb8 {[%clk 0:01:10.9]} 26. c3
{[%clk 0:00:25]} 26... Rxb4 {[%clk 0:01:07.9]} 27. Ra2 {[%clk 0:00:25.6]} 27...
Rb8 {[%clk 0:00:57.4]} 28. Nd2 {[%clk 0:00:24.2]} 28... Rbc8 {[%clk 0:00:53]}
29. c4 {[%clk 0:00:24.4]} 29... Bd3 {[%clk 0:00:51.8]} 30. Ra3 {[%clk
0:00:23.1]} 30... Bf5 {[%clk 0:00:47.3]} 31. f3 {[%clk 0:00:23.1]} 31... g5
{[%clk 0:00:46.6]} 32. Rac3 {[%clk 0:00:22.8]} 32... Bf6 {[%clk 0:00:44.9]} 33.
Ne4 {[%clk 0:00:22.1]} 33... Be7 {[%clk 0:00:43.7]} 34. g4 {[%clk 0:00:21.8]}
34... Bg6 {[%clk 0:00:43.9]} 35. Kg2 {[%clk 0:00:21]} 35... f5 {[%clk
0:00:44.1]} 36. gxf5 {[%clk 0:00:20.5]} 36... Bxf5 {[%clk 0:00:45]} 37. Ng3
{[%clk 0:00:13.5]} 37... Bg6 {[%clk 0:00:43.8]} 38. Ne4 {[%clk 0:00:14.1]} 38...
Kf7 {[%clk 0:00:38.9]} 39. Kg3 {[%clk 0:00:14]} 39... Bf5 {[%clk 0:00:38.3]} 40.
Bb6 {[%clk 0:00:11.3]} 40... Rb7 {[%clk 0:00:36.5]} 41. c5 {[%clk 0:00:11.9]}
41... Bxe4 {[%clk 0:00:34.2]} 42. fxe4 {[%clk 0:00:11.4]} 42... dxc5 {[%clk
0:00:34.2]} 43. Bxc5 {[%clk 0:00:12.3]} 43... Bxc5 {[%clk 0:00:33.6]} 44. Rxc5
{[%clk 0:00:13.2]} 44... Rb3+ {[%clk 0:00:33.9]} 45. Kg4 {[%clk 0:00:13.2]}
45... Rxc5 {[%clk 0:00:17.7]} 46. Rxc5 {[%clk 0:00:14.1]} 46... Re3 {[%clk
0:00:17.6]} 47. Rc7+ {[%clk 0:00:10.7]} 47... Kg6 {[%clk 0:00:17.5]} 48. Rc6+
{[%clk 0:00:11.2]} 48... Kg7 {[%clk 0:00:16.7]} 49. Kf5 {[%clk 0:00:12.1]} 49...
Rf3+ {[%clk 0:00:15.4]} 50. Kxe5 {[%clk 0:00:12]} 50... Rxh3 {[%clk 0:00:15.6]}
51. Rc7+ {[%clk 0:00:12.6]} 51... Kg6 {[%clk 0:00:16.5]} 52. Ke6 {[%clk
0:00:11.7]} 52... Rd3 {[%clk 0:00:16.4]} 53. d6 {[%clk 0:00:11.7]} 53... g4
{[%clk 0:00:17.3]} 54. e5 {[%clk 0:00:10.8]} 54... g3 {[%clk 0:00:17.6]} 55. Rc8
{[%clk 0:00:11.4]} 55... Kg7 {[%clk 0:00:17.2]} 56. d7 {[%clk 0:00:06.8]} 56...
g2 {[%clk 0:00:17.3]} 57. Rc1 {[%clk 0:00:07.5]} 57... h5 {[%clk 0:00:15.2]} 58.
Rg1 {[%clk 0:00:08.2]} 58... Rd2 {[%clk 0:00:13.6]} 59. Rxg2+ {[%clk 0:00:07.8]}
59... Rxg2 {[%clk 0:00:14.5]} 60. d8=Q {[%clk 0:00:08.4]} 60... Rg6+ {[%clk
0:00:14.6]} 61. Kf5 {[%clk 0:00:08.7]} 61... Kh6 {[%clk 0:00:14.5]} 62. Qh8#
{[%clk 0:00:08.4]} 1-0

[Event "*** Titled Tuesday Blitz"]
[Site "Chess.com"]
[Date "2021.03.30"]
[Round "2"]
[White "thechesscorner64"]
[Black "German_Bazeev"]
[Result "0-1"]
[WhiteElo "2354"]
[BlackElo "2790"]
[TimeControl "180+1"]
[EndTime "10:18:30 PDT"]
[Termination "German_Bazeev won on time"]

1. e4 {[%clk 0:03:00.9]} 1... c6 {[%clk 0:02:59.4]} 2. d4 {[%clk 0:03:00.3]}
2... d5 {[%clk 0:02:59.2]} 3. exd5 {[%clk 0:03:00]} 3... cxd5 {[%clk 0:02:59.7]}
4. c4 {[%clk 0:03:00.3]} 4... e6 {[%clk 0:02:59.7]} 5. Nc3 {[%clk 0:03:00.1]}
5... Bb4 {[%clk 0:02:57.2]} 6. Nf3 {[%clk 0:02:58.2]} 6... Nc6 {[%clk 0:02:56]}
7. cxd5 {[%clk 0:02:54.6]} 7... Qxd5 {[%clk 0:02:54.3]} 8. Bd2 {[%clk
0:02:50.5]} 8... Bxc3 {[%clk 0:02:53.8]} 9. bxc3 {[%clk 0:02:48.7]} 9... Nf6
{[%clk 0:02:48.8]} 10. Bd3 {[%clk 0:02:38.9]} 10... O-O {[%clk 0:02:46.6]} 11.
Qe2 {[%clk 0:02:27.8]} 11... b6 {[%clk 0:02:24.7]} 12. O-O {[%clk 0:02:19.5]}
12... Bb7 {[%clk 0:02:24.5]} 13. Rfe1 {[%clk 0:02:08.1]} 13... Rad8 {[%clk
0:02:22]} 14. a4 {[%clk 0:02:02.2]} 14... Rfe8 {[%clk 0:02:19.9]} 15. Bg5 {[%clk
0:01:40.2]} 15... Ne7 {[%clk 0:02:00]} 16. Bxf6 {[%clk 0:01:36.7]} 16... gxf6
{[%clk 0:02:00.9]} 17. Qd2 {[%clk 0:01:22]} 17... Qh5 {[%clk 0:01:56]} 18. Be4
{[%clk 0:01:18.6]} 18... Bxe4 {[%clk 0:01:55.4]} 19. Rxe4 {[%clk 0:01:19.5]}
19... Ng6 {[%clk 0:01:56.2]} 20. Rae1 {[%clk 0:01:09.3]} 20... Kg7 {[%clk
0:01:55.2]} 21. Kh1 {[%clk 0:00:43.2]} 21... f5 {[%clk 0:01:48.5]} 22. R4e2
{[%clk 0:00:42]} 22... Qh6 {[%clk 0:01:48.4]} 23. Qxh6+ {[%clk 0:00:37.6]} 23...
Kxh6 {[%clk 0:01:49.3]} 24. g3 {[%clk 0:00:36.3]} 24... Kg7 {[%clk 0:01:48.6]}
25. h4 {[%clk 0:00:35.4]} 25... Rd5 {[%clk 0:01:41.9]} 26. h5 {[%clk 0:00:30.8]}
26... Nf8 {[%clk 0:01:41.6]} 27. Ne5 {[%clk 0:00:29.7]} 27... Nd7 {[%clk
0:01:35]} 28. Nxd7 {[%clk 0:00:27.1]} 28... Rxd7 {[%clk 0:01:35.9]} 29. Re5
{[%clk 0:00:25.6]} 29... Red8 {[%clk 0:01:35.2]} 30. a5 {[%clk 0:00:24.1]} 30...
Rc7 {[%clk 0:01:29.3]} 31. axb6 {[%clk 0:00:23.5]} 31... axb6 {[%clk 0:01:30.2]}
32. R1e3 {[%clk 0:00:20.4]} 32... Kf6 {[%clk 0:01:24.9]} 33. Rb5 {[%clk
0:00:20]} 33... Rd6 {[%clk 0:01:22]} 34. f4 {[%clk 0:00:16.8]} 34... Rdc6 {[%clk
0:01:21.9]} 35. Kg2 {[%clk 0:00:16.6]} 35... Rxc3 {[%clk 0:01:20.9]} 36. Rxc3
{[%clk 0:00:16.1]} 36... Rxc3 {[%clk 0:01:21.8]} 37. Rxb6 {[%clk 0:00:16.9]}
37... Rd3 {[%clk 0:01:21.9]} 38. Rd6 {[%clk 0:00:17.2]} 38... Ke7 {[%clk
0:01:21]} 39. Ra6 {[%clk 0:00:14]} 39... Rxd4 {[%clk 0:01:21.2]} 40. Ra7+ {[%clk
0:00:14.9]} 40... Rd7 {[%clk 0:01:21.4]} 41. Ra5 {[%clk 0:00:14.4]} 41... Kf6
{[%clk 0:01:21.8]} 42. Kf3 {[%clk 0:00:12.9]} 42... Kg7 {[%clk 0:01:21.5]} 43.
Ra1 {[%clk 0:00:12.2]} 43... Rd3+ {[%clk 0:01:21.2]} 44. Kf2 {[%clk 0:00:11.6]}
44... Rd2+ {[%clk 0:01:20.8]} 45. Kf3 {[%clk 0:00:10.7]} 45... Rd3+ {[%clk
0:01:21.4]} 46. Kf2 {[%clk 0:00:10.8]} 46... Rd7 {[%clk 0:01:22.3]} 47. Rh1
{[%clk 0:00:10.4]} 47... Kh6 {[%clk 0:01:22.4]} 48. Kf3 {[%clk 0:00:10.6]} 48...
Rb7 {[%clk 0:01:22]} 49. Kf2 {[%clk 0:00:10.7]} 49... Rb3 {[%clk 0:01:22]} 50.
Kg2 {[%clk 0:00:10.7]} 50... Re3 {[%clk 0:01:17.2]} 51. Kf2 {[%clk 0:00:10.8]}
51... Re4 {[%clk 0:01:17.5]} 52. Kf3 {[%clk 0:00:10.9]} 52... Rd4 {[%clk
0:01:16.2]} 53. Kf2 {[%clk 0:00:11]} 53... f6 {[%clk 0:01:16.7]} 54. Kf3 {[%clk
0:00:11.3]} 54... e5 {[%clk 0:01:16.7]} 55. fxe5 {[%clk 0:00:10.3]} 55... fxe5
{[%clk 0:01:17.6]} 56. Ke3 {[%clk 0:00:08.2]} 56... Kg5 {[%clk 0:01:17.3]} 57.
h6 {[%clk 0:00:08]} 57... Ra4 {[%clk 0:01:16.5]} 58. Kf3 {[%clk 0:00:07.7]}
58... Ra3+ {[%clk 0:01:16.5]} 59. Kf2 {[%clk 0:00:07.8]} 59... Ra6 {[%clk
0:01:14.3]} 60. Kf3 {[%clk 0:00:07.3]} 60... Rxh6 {[%clk 0:01:14.6]} 61. Re1
{[%clk 0:00:05.8]} 61... Re6 {[%clk 0:01:13.1]} 62. Rd1 {[%clk 0:00:05.9]} 62...
h5 {[%clk 0:01:13]} 63. Rd8 {[%clk 0:00:04.9]} 63... e4+ {[%clk 0:00:39.6]} 64.
Ke3 {[%clk 0:00:04.1]} 64... Rg6 {[%clk 0:00:39.2]} 65. Rf8 {[%clk 0:00:01.7]}
65... Kg4 {[%clk 0:00:39.6]} 66. Kf2 {[%clk 0:00:02.2]} 66... Rg5 {[%clk
0:00:38.6]} 67. Rf7 {[%clk 0:00:02.3]} 67... h4 {[%clk 0:00:38.6]} 68. gxh4
{[%clk 0:00:01.8]} 68... Kxh4 {[%clk 0:00:39.5]} 69. Ke3 {[%clk 0:00:01.7]}
69... Kg4 {[%clk 0:00:38.6]} 70. Rf8 {[%clk 0:00:02.2]} 70... Rg7 {[%clk
0:00:36.7]} 71. Rf6 {[%clk 0:00:02.1]} 71... Kg5 {[%clk 0:00:35.2]} 72. Rf8
{[%clk 0:00:02]} 72... Rd7 {[%clk 0:00:33]} 73. Rg8+ {[%clk 0:00:02.3]} 73...
Kf6 {[%clk 0:00:33.6]} 0-1

[Event "*** Titled Tuesday Blitz"]
[Site "Chess.com"]
[Date "2021.03.30"]
[Round "2"]
[White "VladDobrov"]
[Black "hermionegrangermagic"]
[Result "1-0"]
[WhiteElo "2775"]
[BlackElo "2524"]
[TimeControl "180+1"]
[EndTime "10:18:32 PDT"]
[Termination "VladDobrov won on time"]

1. d4 {[%clk 0:03:00.9]} 1... d5 {[%clk 0:02:59.4]} 2. c4 {[%clk 0:03:01.1]}
2... e6 {[%clk 0:02:58.2]} 3. Nc3 {[%clk 0:03:01]} 3... Be7 {[%clk 0:02:58.1]}
4. Nf3 {[%clk 0:03:00.7]} 4... Nf6 {[%clk 0:02:57.9]} 5. Bf4 {[%clk 0:02:59.1]}
5... O-O {[%clk 0:02:56.6]} 6. e3 {[%clk 0:02:58.8]} 6... b6 {[%clk 0:02:56.1]}
7. cxd5 {[%clk 0:02:54.1]} 7... Nxd5 {[%clk 0:02:55.1]} 8. Nxd5 {[%clk
0:02:53.8]} 8... exd5 {[%clk 0:02:54.5]} 9. Bd3 {[%clk 0:02:52.7]} 9... Bb7
{[%clk 0:02:52.7]} 10. Qc2 {[%clk 0:02:50.7]} 10... h6 {[%clk 0:02:39.2]} 11.
Qxc7 {[%clk 0:02:50.1]} 11... Qxc7 {[%clk 0:02:31.1]} 12. Bxc7 {[%clk 0:02:51]}
12... Nc6 {[%clk 0:02:30.3]} 13. Rc1 {[%clk 0:02:30]} 13... Nb4 {[%clk
0:02:17.7]} 14. Bb1 {[%clk 0:02:26.8]} 14... Rac8 {[%clk 0:01:54]} 15. Kd2
{[%clk 0:02:12.1]} 15... Nc6 {[%clk 0:01:35.4]} 16. Bg3 {[%clk 0:02:09.6]} 16...
Na5 {[%clk 0:01:33.2]} 17. Ke2 {[%clk 0:01:42.7]} 17... Nc4 {[%clk 0:01:19.7]}
18. Bf5 {[%clk 0:01:38.1]} 18... Ra8 {[%clk 0:01:08.2]} 19. b3 {[%clk
0:01:34.2]} 19... Nd6 {[%clk 0:01:00.6]} 20. Bd3 {[%clk 0:01:28.1]} 20... Rac8
{[%clk 0:00:55.6]} 21. Nd2 {[%clk 0:00:59.5]} 21... Ne4 {[%clk 0:00:54.1]} 22.
Nxe4 {[%clk 0:00:55.9]} 22... dxe4 {[%clk 0:00:54]} 23. Bc4 {[%clk 0:00:56.1]}
23... Ba3 {[%clk 0:00:53.8]} 24. Rcd1 {[%clk 0:00:48.6]} 24... Bb4 {[%clk
0:00:47.7]} 25. a4 {[%clk 0:00:45.6]} 25... a6 {[%clk 0:00:44.9]} 26. Rc1 {[%clk
0:00:44.8]} 26... Ba3 {[%clk 0:00:44.3]} 27. Ra1 {[%clk 0:00:44.9]} 27... Bb4
{[%clk 0:00:40.1]} 28. Rhc1 {[%clk 0:00:44.7]} 28... Rfd8 {[%clk 0:00:32.4]} 29.
f4 {[%clk 0:00:43.2]} 29... g6 {[%clk 0:00:29.4]} 30. Be1 {[%clk 0:00:43.2]}
30... Bxe1 {[%clk 0:00:25.6]} 31. Kxe1 {[%clk 0:00:44.1]} 31... Kg7 {[%clk
0:00:25.2]} 32. Kd2 {[%clk 0:00:44]} 32... g5 {[%clk 0:00:23.5]} 33. g3 {[%clk
0:00:43.5]} 33... gxf4 {[%clk 0:00:22]} 34. gxf4 {[%clk 0:00:44.4]} 34... Kf6
{[%clk 0:00:21.3]} 35. Rg1 {[%clk 0:00:40.2]} 35... Rg8 {[%clk 0:00:20.8]} 36.
Rg3 {[%clk 0:00:38.8]} 36... Rxg3 {[%clk 0:00:20]} 37. hxg3 {[%clk 0:00:39.7]}
37... Rg8 {[%clk 0:00:14.7]} 38. Rg1 {[%clk 0:00:39]} 38... h5 {[%clk
0:00:14.6]} 39. Ke2 {[%clk 0:00:38.7]} 39... h4 {[%clk 0:00:14.9]} 40. g4 {[%clk
0:00:37.7]} 40... Bc6 {[%clk 0:00:11.2]} 41. g5+ {[%clk 0:00:36.9]} 41... Kg6
{[%clk 0:00:11.5]} 42. Bxa6 {[%clk 0:00:36.5]} 42... Rh8 {[%clk 0:00:11.5]} 43.
Rh1 {[%clk 0:00:36.2]} 43... h3 {[%clk 0:00:11.7]} 44. Rh2 {[%clk 0:00:36.5]}
44... Bd5 {[%clk 0:00:08.8]} 45. Bc4 {[%clk 0:00:35.1]} 45... Bxc4+ {[%clk
0:00:05.5]} 46. bxc4 {[%clk 0:00:36]} 46... Kf5 {[%clk 0:00:05.1]} 47. Kf2
{[%clk 0:00:24.6]} 47... Kg4 {[%clk 0:00:05.7]} 48. Rh1 {[%clk 0:00:23]} 48...
h2 {[%clk 0:00:05.6]} 49. Kg2 {[%clk 0:00:21.6]} 49... Rh3 {[%clk 0:00:05.8]}
50. Rxh2 {[%clk 0:00:17]} 50... Rg3+ {[%clk 0:00:05.9]} 51. Kf2 {[%clk
0:00:16.5]} 51... f5 {[%clk 0:00:06.3]} 52. gxf6 {[%clk 0:00:16.3]} 52... Rf3+
{[%clk 0:00:06.3]} 53. Ke2 {[%clk 0:00:16.6]} 53... Kg3 {[%clk 0:00:07]} 54. Rh8
{[%clk 0:00:14.9]} 54... Rf2+ {[%clk 0:00:07.3]} 55. Kd1 {[%clk 0:00:15]} 55...
Kf3 {[%clk 0:00:07.6]} 56. f7 {[%clk 0:00:15.2]} 56... Kxe3 {[%clk 0:00:07.7]}
57. Rh3+ {[%clk 0:00:14.7]} 1-0

[Event "*** Titled Tuesday Blitz"]
[Site "Chess.com"]
[Date "2021.03.30"]
[Round "2"]
[White "gaby_przz"]
[Black "chessprincesa1"]
[Result "1-0"]
[WhiteElo "2464"]
[BlackElo "2264"]
[TimeControl "180+1"]
[EndTime "10:18:32 PDT"]
[Termination "gaby_przz won by checkmate"]

1. e4 {[%clk 0:03:00.9]} 1... e5 {[%clk 0:02:58.9]} 2. Nf3 {[%clk 0:03:00.1]}
2... Nc6 {[%clk 0:02:58]} 3. d4 {[%clk 0:02:59.2]} 3... exd4 {[%clk 0:02:57.5]}
4. Bc4 {[%clk 0:02:59.9]} 4... Nf6 {[%clk 0:02:53.7]} 5. e5 {[%clk 0:02:59.7]}
5... d5 {[%clk 0:02:51]} 6. Bb5 {[%clk 0:02:57.4]} 6... Ne4 {[%clk 0:02:49.6]}
7. Nxd4 {[%clk 0:02:54.8]} 7... Bd7 {[%clk 0:02:49.6]} 8. Bxc6 {[%clk
0:02:53.5]} 8... bxc6 {[%clk 0:02:49.5]} 9. O-O {[%clk 0:02:54.4]} 9... Be7
{[%clk 0:02:41.3]} 10. Be3 {[%clk 0:02:42.5]} 10... O-O {[%clk 0:02:26]} 11. Nd2
{[%clk 0:02:31.1]} 11... Nxd2 {[%clk 0:02:15.9]} 12. Qxd2 {[%clk 0:02:32]} 12...
c5 {[%clk 0:02:13.4]} 13. Nf3 {[%clk 0:02:31.5]} 13... d4 {[%clk 0:02:10.4]} 14.
Bf4 {[%clk 0:02:30.4]} 14... Bc6 {[%clk 0:02:10.2]} 15. Qe2 {[%clk 0:02:15.8]}
15... Rb8 {[%clk 0:02:07]} 16. b3 {[%clk 0:02:14.1]} 16... Bb5 {[%clk
0:02:06.3]} 17. Qe4 {[%clk 0:02:07.8]} 17... f5 {[%clk 0:01:42.1]} 18. exf6
{[%clk 0:02:04.2]} 18... Bxf6 {[%clk 0:01:42]} 19. Rfe1 {[%clk 0:02:02.4]} 19...
Re8 {[%clk 0:01:37.1]} 20. Qf5 {[%clk 0:01:57.6]} 20... d3 {[%clk 0:01:30.9]}
21. Rad1 {[%clk 0:01:54.2]} 21... Rxe1+ {[%clk 0:01:17.1]} 22. Nxe1 {[%clk
0:01:51.6]} 22... c4 {[%clk 0:00:50.7]} 23. bxc4 {[%clk 0:01:43.2]} 23... Bxc4
{[%clk 0:00:50]} 24. Nxd3 {[%clk 0:01:42.8]} 24... Bxd3 {[%clk 0:00:44.1]} 25.
cxd3 {[%clk 0:01:38.2]} 25... Rb2 {[%clk 0:00:25.1]} 26. Qc5 {[%clk 0:01:22.5]}
26... Bd4 {[%clk 0:00:20.6]} 27. Qc4+ {[%clk 0:01:21.1]} 27... Kh8 {[%clk
0:00:20.8]} 28. Bg3 {[%clk 0:01:19.6]} 28... Qf6 {[%clk 0:00:18.6]} 29. Rf1
{[%clk 0:01:13.5]} 29... c5 {[%clk 0:00:18.3]} 30. Qd5 {[%clk 0:01:06.7]} 30...
h6 {[%clk 0:00:18.2]} 31. h4 {[%clk 0:01:03.2]} 31... a6 {[%clk 0:00:16.8]} 32.
h5 {[%clk 0:00:55.8]} 32... Qe7 {[%clk 0:00:16.6]} 33. Qa8+ {[%clk 0:00:26.6]}
33... Kh7 {[%clk 0:00:16]} 34. Qxa6 {[%clk 0:00:25.8]} 34... Qe2 {[%clk
0:00:14.3]} 35. Qg6+ {[%clk 0:00:25.5]} 35... Kg8 {[%clk 0:00:14.3]} 36. a4
{[%clk 0:00:20.2]} 36... Ra2 {[%clk 0:00:13.6]} 37. Qc6 {[%clk 0:00:14.3]} 37...
Kh7 {[%clk 0:00:13]} 38. Qe4+ {[%clk 0:00:07.3]} 38... Qxe4 {[%clk 0:00:12.3]}
39. dxe4 {[%clk 0:00:08.2]} 39... Rxa4 {[%clk 0:00:12.9]} 40. Rc1 {[%clk
0:00:06.7]} 40... Ra6 {[%clk 0:00:13.2]} 41. Rc4 {[%clk 0:00:05.8]} 41... Re6
{[%clk 0:00:14.1]} 42. e5 {[%clk 0:00:04.4]} 42... Kg8 {[%clk 0:00:15]} 43. Kh2
{[%clk 0:00:03.3]} 43... Kf7 {[%clk 0:00:15.9]} 44. f4 {[%clk 0:00:03.3]} 44...
Re8 {[%clk 0:00:15.8]} 45. Kh3 {[%clk 0:00:03.5]} 45... Ke6 {[%clk 0:00:15.3]}
46. Kg4 {[%clk 0:00:04.1]} 46... Kd5 {[%clk 0:00:15.7]} 47. Rc2 {[%clk
0:00:04.4]} 47... c4 {[%clk 0:00:16.1]} 48. Kf5 {[%clk 0:00:02.9]} 48... c3
{[%clk 0:00:16]} 49. Kg6 {[%clk 0:00:03.3]} 49... Kc4 {[%clk 0:00:16.4]} 50.
Kxg7 {[%clk 0:00:03.1]} 50... Kb3 {[%clk 0:00:17.1]} 51. Rc1 {[%clk 0:00:02.2]}
51... Kb2 {[%clk 0:00:17.1]} 52. Rf1 {[%clk 0:00:02.4]} 52... c2 {[%clk
0:00:17.2]} 53. f5 {[%clk 0:00:02.2]} 53... Bxe5+ {[%clk 0:00:16.1]} 54. Bxe5+
{[%clk 0:00:02.1]} 54... Rxe5 {[%clk 0:00:16.8]} 55. f6 {[%clk 0:00:02.7]} 55...
Rg5+ {[%clk 0:00:14.4]} 56. Kxh6 {[%clk 0:00:02.4]} 56... Rxg2 {[%clk 0:00:12]}
57. f7 {[%clk 0:00:02.6]} 57... Rf2 {[%clk 0:00:11.2]} 58. Rxf2 {[%clk
0:00:02.4]} 58... Kb1 {[%clk 0:00:10.3]} 59. Rxc2 {[%clk 0:00:03.3]} 59... Kxc2
{[%clk 0:00:10.6]} 60. f8=Q {[%clk 0:00:04.2]} 60... Kd2 {[%clk 0:00:10.2]} 61.
Kg5 {[%clk 0:00:04.9]} 61... Kc3 {[%clk 0:00:11.1]} 62. Qf4 {[%clk 0:00:05.3]}
62... Kb3 {[%clk 0:00:10.9]} 63. h6 {[%clk 0:00:06.2]} 63... Ka2 {[%clk
0:00:11.6]} 64. h7 {[%clk 0:00:07.1]} 64... Ka1 {[%clk 0:00:12.5]} 65. h8=Q+
{[%clk 0:00:07.8]} 65... Kb1 {[%clk 0:00:13.4]} 66. Qc3 {[%clk 0:00:07.5]} 66...
Ka2 {[%clk 0:00:14.3]} 67. Qfd2+ {[%clk 0:00:07.8]} 67... Kb1 {[%clk 0:00:15.1]}
68. Qdb2# {[%clk 0:00:08.5]} 1-0

[Event "*** Titled Tuesday Blitz"]
[Site "Chess.com"]
[Date "2021.03.30"]
[Round "2"]
[White "WisdomGame"]
[Black "jefferyx"]
[Result "1/2-1/2"]
[WhiteElo "2010"]
[BlackElo "2969"]
[TimeControl "180+1"]
[EndTime "10:18:36 PDT"]
[Termination "Game drawn - insufficient material"]

1. e4 {[%clk 0:03:00.9]} 1... c5 {[%clk 0:02:57.2]} 2. Nf3 {[%clk 0:03:00.6]}
2... e6 {[%clk 0:02:56.8]} 3. d3 {[%clk 0:03:00.1]} 3... Nc6 {[%clk 0:02:56.4]}
4. g3 {[%clk 0:02:59.9]} 4... g6 {[%clk 0:02:56.9]} 5. Bg2 {[%clk 0:02:58.4]}
5... Bg7 {[%clk 0:02:57.4]} 6. O-O {[%clk 0:02:58.2]} 6... Nge7 {[%clk 0:02:58]}
7. Nc3 {[%clk 0:02:57.7]} 7... O-O {[%clk 0:02:58]} 8. Nh4 {[%clk 0:02:57.2]}
8... Rb8 {[%clk 0:02:57.7]} 9. a4 {[%clk 0:02:53.4]} 9... a6 {[%clk 0:02:55.9]}
10. Be3 {[%clk 0:02:45.9]} 10... d6 {[%clk 0:02:55.7]} 11. Qd2 {[%clk
0:02:45.1]} 11... b5 {[%clk 0:02:55.7]} 12. axb5 {[%clk 0:02:44.5]} 12... axb5
{[%clk 0:02:56.6]} 13. Bh6 {[%clk 0:02:44.6]} 13... Nd4 {[%clk 0:02:56.9]} 14.
Bxg7 {[%clk 0:02:43.5]} 14... Kxg7 {[%clk 0:02:57.8]} 15. f4 {[%clk 0:02:32.8]}
15... f5 {[%clk 0:02:51.8]} 16. Ne2 {[%clk 0:02:29.2]} 16... Qb6 {[%clk
0:02:45.3]} 17. Nxd4 {[%clk 0:02:21.2]} 17... cxd4 {[%clk 0:02:46.2]} 18. exf5
{[%clk 0:02:21.7]} 18... gxf5 {[%clk 0:02:44.6]} 19. Qd1 {[%clk 0:02:15.8]}
19... Bb7 {[%clk 0:02:42.7]} 20. Nf3 {[%clk 0:02:14.2]} 20... Nd5 {[%clk
0:02:32.8]} 21. Ng5 {[%clk 0:02:05.6]} 21... Rf6 {[%clk 0:02:33.1]} 22. Bxd5
{[%clk 0:01:58.2]} 22... Bxd5 {[%clk 0:02:34]} 23. Re1 {[%clk 0:01:56.5]} 23...
Rc8 {[%clk 0:02:27.9]} 24. Rc1 {[%clk 0:01:52.3]} 24... Rh6 {[%clk 0:02:23.1]}
25. h4 {[%clk 0:01:44]} 25... Rg6 {[%clk 0:02:22.2]} 26. Kh2 {[%clk 0:01:43.7]}
26... h6 {[%clk 0:02:21.4]} 27. Nh3 {[%clk 0:01:43.7]} 27... Kh7 {[%clk
0:02:19.6]} 28. Qe2 {[%clk 0:01:31.5]} 28... Rcg8 {[%clk 0:02:19.2]} 29. Rg1
{[%clk 0:01:31.1]} 29... Qd8 {[%clk 0:02:14.1]} 30. Qf2 {[%clk 0:01:29.7]} 30...
Qf6 {[%clk 0:02:10]} 31. c3 {[%clk 0:01:17.9]} 31... dxc3 {[%clk 0:02:10.9]} 32.
bxc3 {[%clk 0:01:18.5]} 32... Rc8 {[%clk 0:02:09.3]} 33. d4 {[%clk 0:01:17.9]}
33... Rg7 {[%clk 0:02:08.6]} 34. Rge1 {[%clk 0:01:15.4]} 34... Ra7 {[%clk
0:02:06.3]} 35. Re2 {[%clk 0:01:14.4]} 35... Ra3 {[%clk 0:02:04.7]} 36. Qe1
{[%clk 0:01:12.5]} 36... Qg7 {[%clk 0:01:44.5]} 37. Nf2 {[%clk 0:01:08.1]} 37...
Rg8 {[%clk 0:01:39.6]} 38. Nd3 {[%clk 0:01:07.3]} 38... Bc4 {[%clk 0:01:36.7]}
39. Rd2 {[%clk 0:01:06.2]} 39... Bxd3 {[%clk 0:01:31]} 40. Rxd3 {[%clk
0:01:05.5]} 40... Ra2+ {[%clk 0:01:31.4]} 41. Kh1 {[%clk 0:00:48.1]} 41... Qg4
{[%clk 0:01:26.9]} 42. Qf1 {[%clk 0:00:47.9]} 42... Qe2 {[%clk 0:00:48.4]} 43.
Qxe2 {[%clk 0:00:42.8]} 43... Rxe2 {[%clk 0:00:49.3]} 44. Rcd1 {[%clk
0:00:31.9]} 44... Ra8 {[%clk 0:00:46.7]} 45. R3d2 {[%clk 0:00:31.7]} 45... Re3
{[%clk 0:00:33.6]} 46. Rd3 {[%clk 0:00:31.4]} 46... Rxd3 {[%clk 0:00:32]} 47.
Rxd3 {[%clk 0:00:32.3]} 47... Ra3 {[%clk 0:00:32]} 48. d5 {[%clk 0:00:25.1]}
48... b4 {[%clk 0:00:11]} 49. dxe6 {[%clk 0:00:24.8]} 49... bxc3 {[%clk
0:00:11.7]} 50. Rd1 {[%clk 0:00:19.4]} 50... Kg6 {[%clk 0:00:07.9]} 51. Kg2
{[%clk 0:00:19]} 51... Kf6 {[%clk 0:00:07.4]} 52. Rxd6 {[%clk 0:00:18.6]} 52...
Ra2+ {[%clk 0:00:03.8]} 53. Kh3 {[%clk 0:00:18.3]} 53... Rd2 {[%clk 0:00:02.6]}
54. Rc6 {[%clk 0:00:17.3]} 54... c2 {[%clk 0:00:03.1]} 55. h5 {[%clk 0:00:16.5]}
55... Ke7 {[%clk 0:00:02.7]} 56. g4 {[%clk 0:00:16.1]} 56... Rd3+ {[%clk
0:00:02.7]} 57. Kh4 {[%clk 0:00:15.7]} 57... Rd4 {[%clk 0:00:03.3]} 58. gxf5
{[%clk 0:00:14]} 58... Rxf4+ {[%clk 0:00:03.8]} 59. Kg3 {[%clk 0:00:14.2]} 59...
Rxf5 {[%clk 0:00:04.7]} 60. Rxc2 {[%clk 0:00:14]} 60... Rxh5 {[%clk 0:00:05]}
61. Kg4 {[%clk 0:00:13.7]} 61... Rg5+ {[%clk 0:00:05]} 62. Kh4 {[%clk
0:00:13.6]} 62... Re5 {[%clk 0:00:05.3]} 63. Rc7+ {[%clk 0:00:12.5]} 63... Kxe6
{[%clk 0:00:05.4]} 64. Rc6+ {[%clk 0:00:12.4]} 64... Kf5 {[%clk 0:00:06.3]} 65.
Rxh6 {[%clk 0:00:12.2]} 65... Re6 {[%clk 0:00:05.2]} 66. Rxe6 {[%clk 0:00:11.9]}
66... Kxe6 {[%clk 0:00:06.1]} 1/2-1/2